fUST/lending_fUST_20241027
["ID","MTS","AMOUNT","RATE_DAILY","PERIOD"]
[340892340,1730032232417,-163.250932,0.00026888,2]
[340892341,1730032232431,-163.250932,0.00026964,2]
[340892342,1730032232441,-2008.6,0.00027,14]
[340892343,1730032232451,-163.250932,0.0002704,2]
[340892344,1730032232462,-300.0,0.00027097,2]
[340892345,1730032232472,-300.0,0.00027097,2]
[340892347,1730032232482,-6785.28633546,0.00027098,2]
[340892349,1730032232492,-163.250932,0.00027116,2]
[340892350,1730032232502,-163.250932,0.00027192,2]
[340892351,1730032232512,-163.250932,0.00027268,2]
[340892352,1730032232523,-154.41706891,0.00027273,2]
[340892353,1730032232534,-163.250932,0.00027344,2]
[340892354,1730032232544,-176.74863046,0.00027356,2]
[340892355,1730032232554,-72793.464425,0.00027357,4]
[340892356,1730032232564,-500.0,0.00027373,2]
[340892357,1730032232574,-500.0,0.00027373,2]
[340892358,1730032232584,-500.0,0.00027373,2]
[340892359,1730032232595,-500.0,0.00027373,2]
[340892360,1730032232605,-405.70080133,0.00027373,2]
[340892361,1730032232614,-500.0,0.00027373,2]
[340892362,1730032232625,-159.954,0.00027376,16]
[340892363,1730032232635,-280.1,0.00027377,3]
[340892364,1730032232645,-840.34,0.00027377,3]
[340892365,1730032232654,-500.0,0.00027386,2]
[340892366,1730032232664,-567.75402016,0.00027386,2]
[340892367,1730032232674,-500.0,0.00027386,2]
[340892368,1730032232683,-500.0,0.00027386,2]
[340892369,1730032232694,-500.0,0.00027386,2]
[340892370,1730032232704,-424.98114987,0.00027386,2]
[340892371,1730032232714,-500.0,0.00027386,2]
[340892372,1730032232725,-500.0,0.00027386,2]
[340892373,1730032232735,-500.0,0.00027386,2]
[340892374,1730032232744,-500.0,0.00027386,2]
[340892375,1730032232754,-500.0,0.00027386,2]
[340892376,1730032232763,-500.0,0.00027386,2]
[340892377,1730032232773,-500.0,0.00027386,2]
[340892378,1730032232783,-500.0,0.00027386,2]
[340892379,1730032232792,-500.0,0.00027386,2]
[340892380,1730032232802,-500.0,0.00027386,2]
[340892381,1730032232813,-500.0,0.00027386,2]
[340892382,1730032232822,-500.0,0.00027386,2]
[340892383,1730032232833,-500.0,0.00027386,2]
[340892384,1730032232842,-500.0,0.00027386,2]
[340892385,1730032232854,-500.0,0.00027386,2]
[340892386,1730032232863,-500.0,0.00027386,2]
[340892387,1730032232874,-500.0,0.00027386,2]
[340892388,1730032232884,-500.0,0.00027386,2]
[340892389,1730032232893,-500.0,0.00027386,2]
[340892390,1730032232903,-500.0,0.00027386,2]
[340892391,1730032232914,-334.2,0.00027386,2]
[340892392,1730032232925,-500.0,0.00027386,2]
[340892393,1730032232935,-103990.663464,0.00027387,4]
[340892394,1730032232946,-576.68415492,0.00027387,2]
[340892395,1730032232958,-528.0,0.00027389,2]
[340892396,1730032232969,-2396.0,0.00027389,2]
[340892397,1730032232980,-1150.0,0.00027389,2]
[340892398,1730032232991,-361.53130378,0.00027396,2]
[340892399,1730032233000,-446.46842241,0.00027396,2]
[340892400,1730032233011,-198.40217111,0.00027396,2]
[340892401,1730032233023,-500.0,0.00027396,2]
[340892402,1730032233033,-175.91477009,0.00027396,2]
[340892403,1730032233046,-270.70237177,0.00027396,2]
[340892404,1730032233057,-153.0,0.00027397,30]
[340892405,1730032233067,-500.0,0.00027397,30]
[340892406,1730032233077,-583.91825784,0.00027397,30]
[340892407,1730032233087,-151.0,0.00027397,7]
[340892408,1730032233098,-151.0,0.00027397,7]
[340892409,1730032233108,-151.0,0.00027397,7]
[340892410,1730032233118,-151.0,0.00027397,7]
[340892411,1730032233128,-151.0,0.00027397,7]
[340892412,1730032233138,-151.0,0.00027397,7]
[340892413,1730032233148,-162.283725,0.00027397,7]
[340892414,1730032233158,-500.0,0.00027397,30]
[340892415,1730032233168,-151.0,0.00027397,7]
[340892416,1730032233178,-151.0,0.00027397,7]
[340892417,1730032233189,-151.0,0.00027397,7]
[340892418,1730032233198,-151.34511,0.00027397,7]
[340892419,1730032233208,-500.0,0.00027397,30]
[340892420,1730032233218,-1058.54,0.00027397,30]
[340892421,1730032233230,-500.0,0.00027397,30]
[340892422,1730032233240,-1655.0,0.00027397,30]
[340892423,1730032233250,-560.91,0.00027397,30]
[340892424,1730032233261,-572.57544754,0.00027397,30]
[340892425,1730032233271,-500.0,0.00027397,30]
[340892426,1730032233281,-500.0,0.00027397,30]
[340892427,1730032233290,-500.0,0.00027397,30]
[340892428,1730032233300,-151.0,0.00027397,7]
[340892429,1730032233309,-151.0,0.00027397,7]
[340892430,1730032233319,-151.0,0.00027397,7]
[340892431,1730032233329,-500.0,0.00027397,30]
[340892432,1730032233339,-1370.53,0.00027397,30]
[340892433,1730032233350,-151.0,0.00027397,7]
[340892434,1730032233360,-237.795719,0.00027397,7]
[340892435,1730032233370,-786.41,0.00027397,30]
[340892436,1730032233379,-500.0,0.00027397,30]
[340892437,1730032233389,-500.0,0.00027397,30]
[340892438,1730032233399,-500.0,0.00027397,30]
[340892439,1730032233409,-500.0,0.00027397,30]
[340892440,1730032233418,-500.0,0.00027397,30]
[340892441,1730032233429,-512.22324782,0.00027397,30]
[340892442,1730032233439,-500.0,0.00027397,30]
[340892443,1730032233448,-562.42522869,0.00027397,30]
[340892444,1730032233458,-151.0,0.00027397,7]
[340892445,1730032233467,-151.0,0.00027397,7]
[340892446,1730032233478,-151.0,0.00027397,7]
[340892447,1730032233488,-151.0,0.00027397,7]
[340892448,1730032233498,-256.79,0.00027397,7]
[340892449,1730032233507,-500.0,0.00027397,30]
[340892450,1730032233517,-151.0,0.00027397,7]
[340892451,1730032233527,-1231.72,0.00027397,30]
[340892452,1730032233537,-500.0,0.00027397,30]
[340892453,1730032233547,-500.0,0.00027397,30]
[340892454,1730032233556,-500.0,0.00027397,30]
[340892455,1730032233566,-642.52,0.00027397,30]
[340892456,1730032233576,-565.31014781,0.00027397,30]
[340892457,1730032233585,-500.0,0.00027397,30]
[340892458,1730032233595,-500.0,0.00027397,30]
[340892459,1730032233606,-500.0,0.00027397,30]
[340892460,1730032233616,-500.0,0.00027397,30]
[340892461,1730032233625,-568.35530671,0.00027397,30]
[340892462,1730032233635,-500.0,0.00027397,30]
[340892463,1730032233645,-500.0,0.00027397,30]
[340892464,1730032233654,-500.0,0.00027397,30]
[340892465,1730032233663,-500.0,0.00027397,30]
[340892466,1730032233673,-500.0,0.00027397,30]
[340892467,1730032233683,-500.0,0.00027397,30]
[340892468,1730032233693,-500.0,0.00027397,30]
[340892469,1730032233704,-238.31559793,0.00027397,30]
[340892470,1730032233724,-500.0,0.00027397,30]
[340892471,1730032233736,-713.77,0.00027397,30]
[340892472,1730032233746,-500.0,0.00027397,30]
[340892473,1730032233756,-557.35160125,0.00027397,30]
[340892474,1730032233767,-500.0,0.00027397,30]
[340892475,1730032233777,-500.0,0.00027397,30]
[340892476,1730032233787,-500.0,0.00027397,30]
[340892477,1730032233797,-500.0,0.00027397,30]
[340892478,1730032233809,-806.38,0.00027397,30]
[340892479,1730032233819,-500.0,0.00027397,30]
[340892480,1730032233829,-157.63915527,0.00027397,30]
[340892481,1730032233840,-500.0,0.00027397,30]
[340892482,1730032233851,-500.0,0.00027397,30]
[340892483,1730032233861,-151.0,0.00027397,7]
[340892484,1730032233870,-500.0,0.00027397,30]
[340892485,1730032233880,-500.0,0.00027397,30]
[340892486,1730032233890,-500.0,0.00027397,30]
[340892487,1730032233900,-1501.2,0.00027397,30]
[340892488,1730032233909,-500.0,0.00027397,30]
[340892489,1730032233920,-500.0,0.00027397,30]
[340892490,1730032233931,-500.0,0.00027397,30]
[340892491,1730032233941,-171.21039829,0.00027397,30]
[340892492,1730032233951,-269.87121214,0.00027397,30]
[340892493,1730032233960,-500.0,0.00027397,30]
[340892494,1730032233970,-500.0,0.00027397,30]
[340892495,1730032233979,-1470.77,0.00027397,30]
[340892496,1730032233989,-508.93772266,0.00027397,30]
[340892497,1730032234001,-1262.65,0.00027397,30]
[340892498,1730032234012,-998.84,0.00027397,30]
[340892499,1730032234023,-519.53,0.00027397,30]
[340892500,1730032234033,-425.043436,0.00027397,7]
[340892501,1730032234042,-425.043436,0.00027397,7]
[340892502,1730032234052,-425.043436,0.00027397,7]
[340892503,1730032234062,-425.043436,0.00027397,7]
[340892504,1730032234072,-425.043436,0.00027397,7]
[340892505,1730032234083,-425.04343579,0.00027397,7]
[340892506,1730032234093,-500.0,0.00027397,30]
[340892507,1730032234104,-467.42461185,0.00027397,30]
[340892508,1730032234116,-500.0,0.00027397,30]
[340892509,1730032234126,-500.0,0.00027397,30]
[340892510,1730032234137,-500.0,0.00027397,30]
[340892511,1730032234148,-399.74460005,0.00027397,30]
[340892512,1730032234158,-1093.69,0.00027397,30]
[340892513,1730032234168,-151.0,0.00027397,7]
[340892514,1730032234178,-500.0,0.00027397,30]
[340892515,1730032234189,-577.19689357,0.00027397,30]
[340892516,1730032234199,-500.0,0.00027397,30]
[340892517,1730032234211,-604.46,0.00027397,30]
[340892518,1730032234221,-678.36,0.00027397,30]
[340892519,1730032234236,-500.0,0.00027397,30]
[340892520,1730032234247,-500.0,0.00027397,30]
[340892521,1730032234256,-500.0,0.00027397,30]
[340892522,1730032234267,-500.0,0.00027397,30]
[340892523,1730032234277,-500.0,0.00027397,30]
[340892524,1730032234287,-1540.78,0.00027397,30]
[340892525,1730032234297,-500.0,0.00027397,10]
[340892526,1730032234308,-500.0,0.00027397,30]
[340892527,1730032234319,-500.0,0.00027397,30]
[340892528,1730032234330,-500.0,0.00027397,30]
[340892529,1730032234340,-500.0,0.00027397,30]
[340892530,1730032234351,-851.11,0.00027397,30]
[340892531,1730032234361,-386.86557557,0.00027397,30]
[340892532,1730032234371,-500.0,0.00027397,30]
[340892533,1730032234387,-500.0,0.00027397,30]
[340892534,1730032234398,-500.0,0.00027397,30]
[340892535,1730032234409,-739.5,0.00027397,30]
[340892536,1730032234419,-500.0,0.00027397,30]
[340892537,1730032234429,-500.0,0.00027397,30]
[340892538,1730032234439,-500.0,0.00027397,30]
[340892539,1730032234450,-500.0,0.00027397,30]
[340892540,1730032234461,-500.0,0.00027397,30]
[340892541,1730032234471,-1173.86,0.00027397,30]
[340892542,1730032234482,-500.0,0.00027397,30]
[340892543,1730032234493,-682.41,0.00027397,30]
[340892544,1730032234503,-500.0,0.00027397,2]
[340892545,1730032234514,-500.0,0.00027397,30]
[340892546,1730032234525,-679.64,0.00027397,30]
[340892547,1730032234537,-398.0,0.00027397,2]
[340892548,1730032234547,-549.4,0.00027397,30]
[340892549,1730032234557,-1550.97,0.00027397,7]
[340892550,1730032234567,-500.0,0.00027397,30]
[340892551,1730032234578,-500.0,0.00027397,30]
[340892552,1730032234588,-546.03,0.00027397,30]
[340892553,1730032234599,-500.0,0.00027397,30]
[340892554,1730032234608,-500.0,0.00027397,30]
[340892555,1730032234618,-752.15,0.00027397,30]
[340892556,1730032234629,-500.0,0.00027397,30]
[340892557,1730032234640,-500.0,0.00027397,30]
[340892558,1730032234651,-500.0,0.00027397,30]
[340892559,1730032234661,-500.0,0.00027397,30]
[340892560,1730032234671,-896.09,0.00027397,30]
[340892561,1730032234683,-500.0,0.00027397,30]
[340892562,1730032234693,-500.0,0.00027397,30]
[340892563,1730032234705,-500.0,0.00027397,30]
[340892564,1730032234716,-500.0,0.00027397,30]
[340892565,1730032234727,-981.27,0.00027397,30]
[340892566,1730032234739,-863.61,0.00027397,30]
[340892567,1730032234749,-500.0,0.00027397,10]
[340892568,1730032234759,-500.0,0.00027397,30]
[340892569,1730032234769,-500.0,0.00027397,30]
[340892570,1730032234779,-500.0,0.00027397,30]
[340892571,1730032234789,-500.0,0.00027397,30]
[340892572,1730032234799,-3291.54,0.00027397,30]
[340892573,1730032234809,-500.0,0.00027397,30]
[340892574,1730032234819,-1658.36,0.00027397,30]
[340892575,1730032234828,-500.0,0.00027397,30]
[340892576,1730032234838,-261.053554,0.00027397,7]
[340892577,1730032234848,-261.053554,0.00027397,7]
[340892578,1730032234858,-500.0,0.00027397,30]
[340892579,1730032234868,-261.053554,0.00027397,7]
[340892580,1730032234878,-261.053554,0.00027397,7]
[340892581,1730032234887,-500.0,0.00027397,30]
[340892582,1730032234897,-261.053554,0.00027397,7]
[340892583,1730032234907,-261.053554,0.00027397,7]
[340892584,1730032234917,-2023.51,0.00027397,30]
[340892585,1730032234927,-261.053554,0.00027397,7]
[340892586,1730032234937,-261.053554,0.00027397,7]
[340892587,1730032234947,-261.053554,0.00027397,7]
[340892588,1730032234957,-261.053554,0.00027397,7]
[340892589,1730032234967,-261.053554,0.00027397,7]
[340892590,1730032234976,-261.053554,0.00027397,7]
[340892591,1730032234986,-261.053554,0.00027397,7]
[340892592,1730032234996,-261.053554,0.00027397,7]
[340892593,1730032235006,-500.0,0.00027397,30]
[340892594,1730032235016,-261.053554,0.00027397,7]
[340892595,1730032235026,-500.0,0.00027397,30]
[340892596,1730032235036,-1353.77,0.00027397,30]
[340892597,1730032235046,-261.053554,0.00027397,7]
[340892598,1730032235058,-261.053554,0.00027397,7]
[340892599,1730032235069,-261.053554,0.00027397,7]
[340892600,1730032235079,-500.0,0.00027397,30]
[340892601,1730032235089,-261.053554,0.00027397,7]
[340892602,1730032235100,-261.053558,0.00027397,7]
[340892603,1730032235113,-500.0,0.00027397,30]
[340892604,1730032235123,-2829.62,0.00027397,30]
[340892605,1730032235134,-500.0,0.00027397,30]
[340892606,1730032235143,-151.0,0.00027397,7]
[340892607,1730032235156,-151.0,0.00027397,7]
[340892608,1730032235166,-151.0,0.00027397,7]
[340892609,1730032235175,-151.0,0.00027397,7]
[340892610,1730032235185,-1240.42,0.00027397,30]
[340892611,1730032235196,-151.0,0.00027397,7]
[340892612,1730032235207,-151.0,0.00027397,7]
[340892613,1730032235218,-151.0,0.00027397,7]
[340892614,1730032235231,-618.61,0.00027397,30]
[340892615,1730032235242,-151.0,0.00027397,7]
[340892616,1730032235254,-158.30591,0.00027397,7]
[340892617,1730032235265,-500.0,0.00027397,30]
[340892618,1730032235275,-500.0,0.00027397,30]
[340892619,1730032235285,-695.28,0.00027397,30]
[340892620,1730032235296,-262.341518,0.00027397,7]
[340892621,1730032235306,-262.341518,0.00027397,7]
[340892622,1730032235316,-262.341518,0.00027397,7]
[340892623,1730032235326,-262.341518,0.00027397,7]
[340892624,1730032235337,-262.341518,0.00027397,7]
[340892625,1730032235348,-365.77486582,0.00027397,30]
[340892626,1730032235365,-262.341518,0.00027397,7]
[340892627,1730032235375,-262.341518,0.00027397,7]
[340892628,1730032235384,-262.341518,0.00027397,7]
[340892629,1730032235394,-262.341518,0.00027397,7]
[340892630,1730032235406,-1447.23,0.00027397,30]
[340892631,1730032235417,-262.341518,0.00027397,7]
[340892632,1730032235428,-804.85,0.00027397,30]
[340892633,1730032235658,-262.341518,0.00027397,7]
[340892634,1730032235669,-500.0,0.00027397,30]
[340892635,1730032235680,-500.0,0.00027397,30]
[340892636,1730032235691,-262.341518,0.00027397,7]
[340892637,1730032235702,-262.341518,0.00027397,7]
[340892638,1730032235713,-262.341518,0.00027397,7]
[340892639,1730032235723,-262.341518,0.00027397,7]
[340892640,1730032235733,-262.341518,0.00027397,7]
[340892641,1730032235744,-262.341518,0.00027397,7]
[340892642,1730032235754,-262.341518,0.00027397,7]
[340892643,1730032235763,-262.341518,0.00027397,7]
[340892644,1730032235772,-262.341508,0.00027397,7]
[340892645,1730032235781,-500.0,0.00027397,30]
[340892646,1730032235791,-500.0,0.00027397,30]
[340892647,1730032235800,-500.0,0.00027397,30]
[340892648,1730032235809,-500.0,0.00027397,30]
[340892649,1730032235818,-500.0,0.00027397,30]
[340892650,1730032235828,-500.0,0.00027397,30]
[340892651,1730032235838,-1774.07,0.00027397,30]
[340892652,1730032235848,-721.39,0.00027397,30]
[340892653,1730032235859,-500.0,0.00027397,30]
[340892654,1730032235868,-500.0,0.00027397,30]
[340892655,1730032235877,-500.0,0.00027397,30]
[340892656,1730032235886,-500.0,0.00027397,30]
[340892657,1730032235896,-1633.45,0.00027397,30]
[340892658,1730032235906,-1760.6,0.00027397,30]
[340892659,1730032235916,-500.0,0.00027397,30]
[340892660,1730032235925,-500.0,0.00027397,30]
[340892661,1730032235935,-1068.54,0.00027397,30]
[340892662,1730032235944,-176.06757597,0.00027397,30]
[340892663,1730032235953,-500.0,0.00027397,30]
[340892664,1730032235963,-500.0,0.00027397,30]
[340892665,1730032235975,-877.34,0.00027397,30]
[340892666,1730032235985,-1191.07,0.00027397,30]
[340892667,1730032235995,-781.46,0.00027397,30]
[340892668,1730032236006,-151.0,0.00027397,7]
[340892669,1730032236016,-151.0,0.00027397,7]
[340892670,1730032236026,-151.0,0.00027397,7]
[340892671,1730032236035,-500.0,0.00027397,30]
[340892672,1730032236044,-166.734755,0.00027397,7]
[340892673,1730032236055,-1425.88,0.00027397,30]
[340892674,1730032236066,-500.0,0.00027397,30]
[340892675,1730032236076,-500.0,0.00027397,30]
[340892676,1730032236087,-500.0,0.00027397,30]
[340892677,1730032236096,-500.0,0.00027397,30]
[340892678,1730032236107,-500.0,0.00027397,30]
[340892679,1730032236116,-849.11,0.00027397,30]
[340892680,1730032236126,-500.0,0.00027397,30]
[340892681,1730032236135,-881.05,0.00027397,30]
[340892682,1730032236145,-761.26,0.00027397,30]
[340892683,1730032236154,-500.0,0.00027397,30]
[340892684,1730032236164,-655.98,0.00027397,30]
[340892685,1730032236173,-1127.84,0.00027397,30]
[340892686,1730032236182,-500.0,0.00027397,30]
[340892687,1730032236194,-500.0,0.00027397,30]
[340892688,1730032236204,-500.0,0.00027397,30]
[340892689,1730032236214,-500.0,0.00027397,30]
[340892690,1730032236226,-523.0470076,0.00027397,30]
[340892691,1730032236239,-151.0,0.00027397,7]
[340892692,1730032236249,-151.0,0.00027397,7]
[340892693,1730032236259,-500.0,0.00027397,30]
[340892694,1730032236270,-295.74464,0.00027397,7]
[340892695,1730032236279,-500.0,0.00027397,30]
[340892696,1730032236288,-608.9,0.00027397,30]
[340892697,1730032236297,-500.0,0.00027397,30]
[340892698,1730032236307,-708.53,0.00027397,30]
[340892699,1730032236317,-800.05,0.00027397,30]
[340892700,1730032236326,-684.62,0.00027397,30]
[340892701,1730032236337,-500.0,0.00027397,30]
[340892702,1730032236347,-500.0,0.00027397,30]
[340892703,1730032236358,-557.23909755,0.00027397,30]
[340892704,1730032236367,-500.0,0.00027397,30]
[340892705,1730032236378,-1089.02,0.00027397,30]
[340892706,1730032236387,-500.0,0.00027397,30]
[340892707,1730032236397,-1159.09,0.00027397,30]
[340892708,1730032236407,-908.03,0.00027397,30]
[340892709,1730032236417,-2005.83,0.00027397,30]
[340892710,1730032236428,-500.0,0.00027397,30]
[340892711,1730032236439,-869.44,0.00027397,30]
[340892712,1730032236451,-500.0,0.00027397,30]
[340892713,1730032236460,-200.11995746,0.00027397,30]
[340892714,1730032236470,-500.0,0.00027397,30]
[340892715,1730032236479,-1836.07,0.00027397,30]
[340892716,1730032236488,-562.32255711,0.00027397,30]
[340892717,1730032236498,-1007.58,0.00027397,30]
[340892718,1730032236508,-500.0,0.00027397,30]
[340892719,1730032236518,-500.0,0.00027397,30]
[340892720,1730032236529,-937.39,0.00027397,30]
[340892721,1730032236538,-1037.32,0.00027397,30]
[340892722,1730032236548,-500.0,0.00027397,30]
[340892723,1730032236557,-500.0,0.00027397,30]
[340892724,1730032236569,-500.0,0.00027397,30]
[340892725,1730032236579,-500.0,0.00027397,30]
[340892726,1730032236591,-500.0,0.00027397,30]
[340892727,1730032236602,-500.0,0.00027397,30]
[340892728,1730032236611,-1172.69,0.00027397,30]
[340892729,1730032236623,-1083.35,0.00027397,30]
[340892730,1730032236632,-500.0,0.00027397,30]
[340892731,1730032236642,-500.0,0.00027397,30]
[340892732,1730032236653,-500.0,0.00027397,30]
[340892733,1730032236662,-1969.37,0.00027397,30]
[340892734,1730032236672,-151.88517447,0.00027397,30]
[340892735,1730032236683,-151.0,0.00027397,7]
[340892736,1730032236697,-151.0,0.00027397,7]
[340892737,1730032236707,-151.0,0.00027397,7]
[340892738,1730032236718,-151.0,0.00027397,7]
[340892739,1730032236729,-151.0,0.00027397,7]
[340892740,1730032236738,-500.0,0.00027397,30]
[340892741,1730032236749,-151.0,0.00027397,7]
[340892742,1730032236760,-151.0,0.00027397,7]
[340892743,1730032236771,-151.0,0.00027397,7]
[340892744,1730032236783,-151.0,0.00027397,7]
[340892745,1730032236794,-151.0,0.00027397,7]
[340892746,1730032236803,-151.0,0.00027397,7]
[340892747,1730032236813,-151.0,0.00027397,7]
[340892748,1730032236822,-151.0,0.00027397,7]
[340892749,1730032236831,-151.0,0.00027397,7]
[340892750,1730032236840,-151.0,0.00027397,7]
[340892751,1730032236850,-151.0,0.00027397,7]
[340892752,1730032236861,-151.0,0.00027397,7]
[340892753,1730032236870,-217.529488,0.00027397,7]
[340892754,1730032236880,-151.0,0.00027397,7]
[340892755,1730032236889,-151.0,0.00027397,7]
[340892756,1730032236900,-151.0,0.00027397,7]
[340892757,1730032236909,-696.04,0.00027397,30]
[340892758,1730032236919,-151.0,0.00027397,7]
[340892759,1730032236931,-897.59,0.00027397,30]
[340892760,1730032236942,-500.0,0.00027397,30]
[340892761,1730032236952,-500.0,0.00027397,30]
[340892762,1730032236963,-500.0,0.00027397,30]
[340892763,1730032236975,-151.0,0.00027397,7]
[340892764,1730032236985,-539.16,0.00027397,30]
[340892765,1730032236995,-151.0,0.00027397,7]
[340892766,1730032237005,-151.0,0.00027397,7]
[340892767,1730032237015,-500.0,0.00027397,30]
[340892768,1730032237027,-151.0,0.00027397,7]
[340892769,1730032237037,-151.0,0.00027397,7]
[340892770,1730032237046,-634.08,0.00027397,30]
[340892771,1730032237056,-500.0,0.00027397,30]
[340892772,1730032237067,-151.0,0.00027397,7]
[340892773,1730032237079,-927.38,0.00027397,30]
[340892774,1730032237089,-151.0,0.00027397,7]
[340892775,1730032237100,-500.0,0.00027397,7]
[340892776,1730032237109,-151.0,0.00027397,7]
[340892777,1730032237118,-151.0,0.00027397,7]
[340892778,1730032237129,-500.0,0.00027397,30]
[340892779,1730032237139,-659.55,0.00027397,30]
[340892780,1730032237152,-500.0,0.00027397,30]
[340892781,1730032237163,-151.0,0.00027397,7]
[340892782,1730032237173,-500.0,0.00027397,30]
[340892783,1730032237185,-500.0,0.00027397,30]
[340892784,1730032237195,-500.0,0.00027397,30]
[340892785,1730032237205,-500.0,0.00027397,30]
[340892786,1730032237215,-500.0,0.00027397,30]
[340892787,1730032237226,-500.0,0.00027397,30]
[340892788,1730032237239,-1056.17,0.00027397,30]
[340892789,1730032237249,-358.3280544,0.00027397,30]
[340892790,1730032237259,-640.64,0.00027397,30]
[340892791,1730032237269,-559.19244962,0.00027397,30]
[340892792,1730032237279,-500.0,0.00027397,30]
[340892793,1730032237288,-831.94,0.00027397,30]
[340892794,1730032237298,-571.26948089,0.00027397,30]
[340892795,1730032237307,-1603.19,0.00027397,30]
[340892796,1730032237317,-500.0,0.00027397,30]
[340892797,1730032237327,-500.0,0.00027397,30]
[340892798,1730032237338,-500.0,0.00027397,30]
[340892799,1730032237349,-500.0,0.00027397,30]
[340892800,1730032237360,-500.0,0.00027397,30]
[340892801,1730032237370,-1122.43,0.00027397,30]
[340892802,1730032237380,-500.0,0.00027397,30]
[340892803,1730032237390,-599.58092115,0.00027397,30]
[340892804,1730032237400,-574.92470938,0.00027397,30]
[340892805,1730032237411,-1085.46461167,0.00027397,30]
[340892806,1730032237669,-393.85538833,0.00027397,30]
[340892807,1730032237679,-500.0,0.00027397,30]
[340892808,1730032237690,-813.48,0.00027397,30]
[340892809,1730032237701,-300.2260346,0.00027397,30]
[340892810,1730032237711,-1104.71,0.00027397,30]
[340892811,1730032237720,-666.8,0.00027397,30]
[340892812,1730032237731,-500.0,0.00027397,30]
[340892813,1730032237741,-500.0,0.00027397,30]
[340892814,1730032237753,-500.0,0.00027397,30]
[340892815,1730032237763,-500.0,0.00027397,30]
[340892816,1730032237774,-500.0,0.00027397,30]
[340892817,1730032237783,-340.3686972,0.00027397,30]
[340892818,1730032237793,-322.42359931,0.00027397,30]
[340892820,1730032238472,-177.57640069,0.00027397,30]
[340892822,1730032238482,-148.50816805,0.00027397,30]
[340892825,1730032238494,-723.07183195,0.00027397,30]
[340892827,1730032238503,-500.0,0.00027397,30]
[340892828,1730032238514,-500.0,0.00027397,30]
[340892829,1730032238524,-500.0,0.00027397,30]
[340892830,1730032238534,-151.0,0.00027397,7]
[340892832,1730032238543,-500.0,0.00027397,30]
[340892833,1730032238553,-151.0,0.00027397,7]
[340892834,1730032238562,-151.0,0.00027397,7]
[340892835,1730032238571,-151.0,0.00027397,7]
[340892836,1730032238581,-151.0,0.00027397,7]
[340892837,1730032238592,-151.0,0.00027397,7]
[340892838,1730032238603,-292.412382,0.00027397,7]
[340892839,1730032238613,-151.0,0.00027397,7]
[340892840,1730032238622,-292.412382,0.00027397,7]
[340892841,1730032238632,-28.82632559,0.00027397,7]
[340892846,1730032240300,-122.17367441,0.00027397,7]
[340892847,1730032240310,-292.412382,0.00027397,7]
[340892848,1730032240320,-500.0,0.00027397,30]
[340892849,1730032240330,-151.0,0.00027397,7]
[340892850,1730032240339,-292.412382,0.00027397,7]
[340892851,1730032240349,-151.0,0.00027397,7]